bitfinex/quotes_BTCUSD_20241205
["timestamp","ask_amount","ask_price","bid_price","bid_amount"]
[1733367695279,0.196631,101720.0,101680.0,0.01984314]
[1733367695502,0.296676,101690.0,101680.0,0.00017514]
[1733367695728,0.196771,101650.0,101610.0,0.02142239]
[1733367696009,0.1,101660.0,101610.0,0.02026608]
[1733367696257,0.1482,101670.0,101610.0,0.02026608]
[1733367696258,0.08072,101670.0,101650.0,0.019673]
[1733367696461,0.0482,101670.0,101650.0,0.039348]
[1733367696678,0.196736,101660.0,101630.0,0.039354]
[1733367696896,0.196736,101660.0,101630.0,0.019677]
[1733367697122,0.33213358,101660.0,101620.0,0.019679]
[1733367697338,0.0482,101670.0,101630.0,0.00174161]
[1733367697558,0.0482,101670.0,101620.0,0.02026408]
[1733367697779,0.19675,101660.0,101620.0,0.02026408]
[1733367697992,0.393485,101660.0,101630.0,0.019679]
[1733367698213,0.244919,101670.0,101640.0,0.019677]
[1733367698459,0.2,101690.0,101640.0,0.00174155]
[1733367698736,0.2,101700.0,101680.0,0.019668]
[1733367698984,0.2,101700.0,101690.0,0.019667]
[1733367699208,0.2,101700.0,101690.0,0.0214074]
[1733367699461,0.2,101700.0,101680.0,0.039337]
[1733367699675,0.1,101750.0,101710.0,0.019663]
[1733367699914,0.296594,101740.0,101690.0,0.02140763]
[1733367700131,0.1396594,101740.0,101710.0,0.00017531]
[1733367700352,0.1,101720.0,101710.0,0.00017531]
[1733367700583,0.1396594,101740.0,101710.0,0.01983731]
[1733367700838,0.196615,101730.0,101710.0,0.00017531]
[1733367701043,0.196618,101720.0,101710.0,0.00017531]
[1733367701253,0.2459411,101720.0,101710.0,0.00017531]
[1733367701479,0.327318,101720.0,101710.0,0.00017531]
[1733367701698,0.1307,101720.0,101710.0,0.00017531]
[1733367701912,0.0815,101720.0,101710.0,0.01983831]
[1733367702141,0.52727,101750.0,101710.0,0.01983831]
[1733367702381,0.1307,101750.0,101720.0,0.019661]
[1733367702600,0.0815,101750.0,101730.0,0.039316]
[1733367702817,0.1492,101780.0,101730.0,0.00173993]
[1733367702818,0.1307,101780.0,101730.0,0.00173993]
[1733367703031,0.1307,101780.0,101730.0,0.019659]
[1733367703245,0.1307,101810.0,101760.0,0.019652]
[1733367703472,0.1307,101810.0,101790.0,0.019646]
[1733367704197,0.1307,101810.0,101790.0,0.039294]
[1733367704415,0.1307,101810.0,101780.0,0.019648]
[1733367704624,0.296463,101800.0,101770.0,0.01965]
[1733367704845,0.296463,101800.0,101760.0,0.019652]
[1733367705087,0.35888381,101800.0,101750.0,0.00173921]
[1733367705301,0.196502,101780.0,101750.0,0.019655]
[1733367705517,0.296502,101780.0,101750.0,0.019655]
[1733367705764,0.1,101770.0,101750.0,0.019655]
[1733367705971,0.196521,101770.0,101740.0,0.019656]
[1733367706188,0.196542,101760.0,101740.0,0.019656]
[1733367706405,0.1296521,101770.0,101750.0,0.019655]
[1733367706620,0.0296521,101770.0,101750.0,0.03931]
[1733367706835,0.2261741,101770.0,101750.0,0.019655]
[1733367707058,0.2261741,101770.0,101750.0,0.01983031]
[1733367707275,0.4226961,101770.0,101750.0,0.00017531]
[1733367707532,0.0296521,101770.0,101750.0,0.01983031]
[1733367707764,0.392995,101790.0,101770.0,0.019652]
[1733367707999,0.392995,101790.0,101750.0,0.01982931]
[1733367708000,0.196502,101780.0,101750.0,0.01982931]
[1733367708214,0.19654,101760.0,101750.0,0.00017531]
[1733367708855,0.296584,101740.0,101720.0,0.019661]
[1733367709069,0.1,101740.0,101720.0,0.019661]
[1733367709286,0.493137,101750.0,101720.0,0.039321]
[1733367709495,0.00017508,101760.0,101730.0,0.019658]
[1733367709929,0.35889081,101800.0,101750.0,0.019656]
[1733367710143,0.1,101780.0,101760.0,0.019654]
[1733367710360,0.1,101780.0,101760.0,0.039306]
[1733367710574,0.1,101780.0,101760.0,0.039304]
[1733367710786,0.196459,101810.0,101770.0,0.01965]
[1733367711000,0.196459,101810.0,101750.0,0.119654]
[1733367711001,0.00017514,101800.0,101750.0,0.019654]
[1733367711223,0.19665214,101800.0,101770.0,0.019652]
[1733367711464,0.24596085,101800.0,101780.0,0.019649]
[1733367711675,0.24596085,101800.0,101760.0,0.019652]
[1733367711889,0.24596085,101800.0,101770.0,0.019651]
[1733367712100,0.00017514,101800.0,101780.0,0.039297]
[1733367712343,0.00017514,101800.0,101780.0,0.019648]
[1733367712563,0.00017514,101800.0,101780.0,0.039297]
[1733367712751,0.00017514,101800.0,101790.0,0.019648]
[1733367713662,0.00017514,101800.0,101760.0,0.169652]
[1733367713886,0.00017514,101800.0,101790.0,0.019648]
[1733367714362,0.00017514,101800.0,101790.0,0.12138687]
[1733367715011,1.4e-07,101800.0,101790.0,0.12138687]
[1733367715240,1.4e-07,101800.0,101790.0,0.22138687]
[1733367715469,0.015348,101840.0,101830.0,0.01964]
[1733367715687,0.0155231,101840.0,101830.0,0.01964]
[1733367716344,0.0155231,101840.0,101830.0,0.12137804]
[1733367716787,0.01544605,101840.0,101830.0,0.12137804]
[1733367717905,0.01544605,101840.0,101830.0,0.10173804]
[1733367718121,0.01544605,101840.0,101830.0,0.12137804]
[1733367718345,0.01544605,101840.0,101830.0,0.12137773]
[1733367719058,0.01544605,101840.0,101830.0,0.22137773]
[1733367719059,5e-08,101840.0,101830.0,0.22137773]
[1733367719295,8e-05,101860.0,101840.0,0.119638]
[1733367719517,8e-05,101860.0,101850.0,0.10173721]
[1733367719941,8e-05,101860.0,101850.0,0.12137321]
[1733367720193,8e-05,101860.0,101850.0,0.119636]
[1733367720426,8e-05,101860.0,101850.0,0.1213734]
[1733367720647,1e-06,101860.0,101850.0,0.3033734]
[1733367720865,1e-06,101860.0,101850.0,0.201636]
[1733367721089,1e-06,101860.0,101840.0,0.019638]
[1733367721326,0.196385,101850.0,101830.0,0.0001751]
[1733367721531,1e-06,101860.0,101830.0,0.00191328]
[1733367721740,1e-06,101860.0,101850.0,0.119636]
[1733367721948,1e-06,101860.0,101850.0,0.019636]
[1733367722180,1e-06,101860.0,101850.0,0.02137386]
[1733367722401,1e-06,101860.0,101850.0,0.019636]
[1733367722851,1e-06,101860.0,101840.0,0.019638]
[1733367723092,0.196386,101840.0,101830.0,0.0001751]
[1733367723297,0.2439513,101840.0,101830.0,0.0001751]
[1733367723510,0.278267,101850.0,101830.0,0.0001751]
[1733367723726,0.574652,101850.0,101830.0,0.0001751]
[1733367723941,1.696386,101840.0,101830.0,0.0001751]
[1733367724185,0.0829,101850.0,101830.0,0.0001751]
[1733367724427,0.0453,101870.0,101850.0,0.019636]
[1733367724666,0.05751,101870.0,101850.0,0.019635]
[1733367724878,0.01321,101870.0,101830.0,0.0198141]
[1733367725129,0.196367,101850.0,101830.0,0.0001751]
[1733367725342,0.195364,101860.0,101830.0,0.0001751]
[1733367725784,0.0868,101880.0,101840.0,0.019638]
[1733367726004,0.196349,101860.0,101840.0,0.019638]
[1733367726217,0.296343,101870.0,101830.0,0.0001751]
[1733367726436,0.01,101880.0,101830.0,0.1198141]
[1733367726694,0.01,101880.0,101870.0,0.019632]
[1733367726922,0.01,101880.0,101870.0,0.119632]
[1733367727108,0.01,101880.0,101870.0,0.12136889]
[1733367727358,0.01,101880.0,101870.0,0.019632]
[1733367727571,0.01,101880.0,101870.0,0.02136916]
[1733367727784,0.01,101880.0,101870.0,0.12136916]
[1733367727992,0.01017507,101880.0,101870.0,0.019632]
[1733367728210,0.01017507,101880.0,101860.0,0.019633]
[1733367728421,0.01017507,101880.0,101870.0,0.019632]
[1733367728641,0.01017507,101880.0,101860.0,0.019633]
[1733367728830,0.01017507,101880.0,101870.0,0.019632]
[1733367729073,0.01017507,101880.0,101870.0,0.12136959]
[1733367729280,0.01017507,101880.0,101870.0,0.019632]
[1733367729913,0.01017507,101880.0,101870.0,0.12136941]
[1733367730335,0.01017507,101880.0,101870.0,0.02136941]
[1733367730556,0.01017507,101880.0,101870.0,0.12136941]
[1733367730765,0.01017507,101880.0,101870.0,0.019632]
[1733367730971,0.01017507,101880.0,101870.0,0.02136916]
[1733367731396,0.01017507,101880.0,101870.0,0.00736916]
[1733367731629,0.01017507,101880.0,101870.0,0.10173716]
[1733367731855,0.01017507,101880.0,101870.0,0.119632]
[1733367732082,0.01017507,101880.0,101870.0,0.019632]
[1733367732332,0.01017507,101880.0,101870.0,0.02136897]
[1733367732593,0.01017507,101880.0,101870.0,0.16826897]
[1733367732839,0.01017507,101880.0,101870.0,0.166532]
[1733367733079,0.01017507,101880.0,101870.0,0.12136896]
[1733367734009,0.01017507,101880.0,101870.0,0.12136911]
[1733367734527,0.01017507,101880.0,101870.0,0.12136906]
[1733367734749,7e-08,101880.0,101870.0,0.12136906]
[1733367735909,0.00844435,101890.0,101870.0,0.12136906]
[1733367735910,0.00844435,101890.0,101870.0,0.16063206]
[1733367736145,0.00844435,101890.0,101880.0,0.02136684]
[1733367736403,0.00844435,101890.0,101880.0,0.12136684]
[1733367737557,0.00844435,101890.0,101880.0,0.01963]
[1733367737816,0.00844435,101890.0,101880.0,0.02128716]
[1733367738310,0.00844435,101890.0,101880.0,0.12128716]
[1733367739063,0.00844435,101890.0,101880.0,0.02128716]
[1733367739288,0.00844435,101890.0,101870.0,0.14117409]
[1733367739535,0.00844435,101890.0,101870.0,0.00017507]
[1733367739988,0.0464,101880.0,101870.0,0.00017507]
[1733367740208,0.07151474,101880.0,101870.0,0.00017507]
[1733367740436,0.49615493,101870.0,101840.0,0.15173782]
[1733367740672,0.16106199,101860.0,101840.0,0.15]
[1733367740908,0.29982493,101870.0,101840.0,0.15]
[1733367741141,0.49611493,101870.0,101840.0,0.15]
[1733367741368,0.196362,101860.0,101840.0,0.15]
[1733367741632,0.26914333,101850.0,101800.0,0.019644]
[1733367741854,0.07277633,101830.0,101810.0,0.019644]
[1733367742066,1.56277633,101860.0,101810.0,0.05686567]
[1733367742320,1.56277633,101860.0,101830.0,0.019639]
[1733367742544,1.56277633,101860.0,101820.0,0.019642]
[1733367742545,0.06277633,101840.0,101820.0,0.019642]
[1733367742789,0.06277633,101850.0,101820.0,0.019642]
[1733367743289,1.86197179,101860.0,101830.0,0.01964]
[1733367743514,0.10283146,101860.0,101830.0,0.01964]
[1733367743766,0.49662888,101870.0,101830.0,0.01964]
[1733367744005,0.06277633,101860.0,101820.0,0.0198151]
[1733367744228,0.06277633,101850.0,101820.0,0.0001751]
[1733367744470,0.25916333,101840.0,101820.0,0.0001751]
[1733367744712,0.45556633,101840.0,101820.0,0.0001751]
[1733367744942,0.1,101820.0,101750.0,0.00943267]
[1733367745173,0.10173854,101810.0,101750.0,0.00943267]
[1733367745399,0.00173854,101810.0,101780.0,0.01965]
[1733367745645,0.10173854,101810.0,101780.0,0.0393]
[1733367745915,0.00173854,101810.0,101790.0,0.019647]
[1733367746158,0.00173854,101820.0,101790.0,0.019647]
[1733367746380,0.00044728,101840.0,101830.0,0.01964]
[1733367747082,0.00017491,101840.0,101830.0,0.01964]
[1733367747774,0.00017491,101840.0,101820.0,0.019642]
[1733367748022,0.10191345,101840.0,101790.0,0.02138552]
[1733367748268,0.00191345,101840.0,101820.0,0.019642]
[1733367748497,0.00017491,101840.0,101830.0,0.02137802]
[1733367748732,0.00017491,101840.0,101830.0,0.12137802]
[1733367748975,9.1e-07,101840.0,101830.0,0.02137802]
[1733367749217,9.1e-07,101840.0,101830.0,0.11964]
[1733367749457,9.1e-07,101840.0,101830.0,0.01964]
[1733367749786,9.1e-07,101840.0,101830.0,0.02137804]
[1733367750039,9.1e-07,101840.0,101830.0,0.01964]
[1733367750744,9.1e-07,101840.0,101820.0,0.039284]
[1733367750965,0.00173945,101840.0,101810.0,0.039287]
[1733367751236,0.00173945,101840.0,101800.0,0.019645]
[1733367751237,0.37352545,101840.0,101800.0,0.019644]
[1733367751507,0.21903199,101840.0,101810.0,0.019644]
[1733367751764,0.11903199,101840.0,101810.0,0.039288]
[1733367751992,0.11903199,101840.0,101810.0,0.019644]
[1733367752208,0.21903199,101840.0,101810.0,0.019642]
[1733367752905,0.1,101820.0,101790.0,0.019647]
[1733367753146,0.04853854,101810.0,101790.0,0.04807685]
[1733367753435,0.34498254,101810.0,101790.0,0.02842985]
[1733367753665,0.34498254,101810.0,101780.0,0.019648]
[1733367753882,0.376064,101800.0,101740.0,0.0751]
[1733367754118,0.1,101780.0,101750.0,0.019655]
[1733367754365,0.04853854,101770.0,101750.0,0.019655]
[1733367754592,0.04853854,101770.0,101760.0,0.019654]
[1733367754818,0.00173854,101780.0,101770.0,0.019652]
[1733367755014,0.196521,101770.0,101750.0,0.019655]
[1733367755268,0.296503,101780.0,101770.0,0.00058414]
[1733367755488,0.1,101780.0,101770.0,0.00058414]
[1733367755724,0.1,101790.0,101770.0,0.00058414]
[1733367755972,0.13457392,101790.0,101770.0,0.00058414]
[1733367756189,0.492966,101790.0,101770.0,0.00058414]
[1733367756396,0.296502,101780.0,101770.0,0.00058414]
[1733367756683,0.493059,101770.0,101740.0,0.039313]
[1733367756903,0.196541,101760.0,101730.0,0.019658]
[1733367757152,0.2702701,101770.0,101720.0,0.0034646]
[1733367757351,0.0737461,101770.0,101750.0,0.019654]
[1733367757843,1.8449952,101780.0,101750.0,0.019654]
[1733367757844,0.1484832,101780.0,101760.0,0.019652]
[1733367758067,0.3449852,101780.0,101750.0,0.039308]
[1733367758309,0.1484832,101780.0,101760.0,0.019653]
[1733367758543,0.1,101760.0,101740.0,0.039312]
[1733367758784,0.2449862,101780.0,101750.0,0.019655]
[1733367758785,0.1,101770.0,101750.0,0.019655]
[1733367759038,0.0005832,101780.0,101770.0,0.019652]
[1733367760582,2e-07,101780.0,101770.0,0.12746079]
[1733367760809,2e-07,101780.0,101770.0,0.17366079]
[1733367761020,0.08831091,101840.0,101830.0,0.01964]
[1733367761267,0.08657237,101840.0,101830.0,0.01964]
[1733367761483,0.12486631,101840.0,101820.0,0.019641]
[1733367761695,0.0384,101830.0,101820.0,0.019641]
[1733367761913,0.0479,101840.0,101820.0,0.019641]
[1733367762126,0.0863,101840.0,101820.0,0.019641]
[1733367762368,0.0479,101840.0,101820.0,0.019815]
[1733367762599,0.0863,101840.0,101830.0,0.01964]
[1733367762809,0.05653,101840.0,101830.0,0.01964]
[1733367763034,0.0863,101840.0,101830.0,0.01964]
[1733367763242,0.0479,101840.0,101830.0,0.01964]
[1733367763471,0.00173854,101860.0,101840.0,0.019638]
[1733367763702,0.38518493,101870.0,101850.0,0.019636]
[1733367763909,0.00173854,101860.0,101850.0,0.039272]
[1733367764793,0.29978493,101870.0,101860.0,0.0017375]
[1733367765034,0.29978493,101870.0,101860.0,0.0213715]
[1733367765243,0.29978493,101870.0,101860.0,0.019634]
[1733367765453,0.19400958,101870.0,101860.0,0.02137148]
[1733367765660,0.09584458,101870.0,101860.0,0.05839917]
[1733367765909,0.09584458,101870.0,101860.0,0.02137122]
[1733367766570,0.09584458,101870.0,101860.0,0.019634]
[1733367766779,0.09584458,101870.0,101860.0,0.00173771]
[1733367766988,0.09584458,101870.0,101860.0,0.02137171]
[1733367767413,0.09584458,101870.0,101860.0,0.04819695]
[1733367767837,0.09584458,101870.0,101860.0,0.02137171]
[1733367768057,0.09584458,101870.0,101860.0,0.019634]
[1733367769259,0.10609479,101870.0,101860.0,0.019634]
[1733367769508,1.60609479,101870.0,101860.0,0.019634]
[1733367769963,0.0384,101860.0,101850.0,0.16564465]
[1733367770180,0.14297,101860.0,101850.0,0.16564465]
[1733367770390,0.00173854,101860.0,101850.0,0.16564465]
[1733367770811,0.08983332,101870.0,101850.0,0.16564465]
[1733367771452,0.0384,101860.0,101850.0,0.16564465]
[1733367771873,0.00017507,101880.0,101850.0,0.16564465]
[1733367771874,0.0384,101870.0,101860.0,0.019634]
[1733367772095,0.0384,101870.0,101860.0,0.04114203]
[1733367772324,0.0384,101870.0,101860.0,0.019634]
[1733367773028,0.0384,101870.0,101860.0,0.022134]
[1733367774303,0.00017507,101880.0,101860.0,0.022134]
[1733367774304,0.00017507,101880.0,101870.0,0.01016668]
[1733367774515,0.15624442,101890.0,101880.0,0.02979668]
[1733367774723,0.15682787,101890.0,101880.0,0.01963]
[1733367775185,0.19522787,101890.0,101880.0,0.01963]
[1733367775628,0.19522787,101890.0,101880.0,0.009815]
[1733367775834,0.0384,101880.0,101870.0,0.019631]
[1733367776044,0.0384,101880.0,101870.0,0.009815]
[1733367776262,1.65682787,101890.0,101880.0,0.009815]
[1733367776489,0.15682787,101890.0,101880.0,0.009815]
[1733367776722,0.15682787,101890.0,101870.0,0.009815]
[1733367776935,1.50058345,101890.0,101870.0,0.009815]
[1733367777128,1.50058345,101890.0,101880.0,0.009815]
[1733367777348,1.50058345,101890.0,101870.0,0.019631]
[1733367777562,0.08588345,101890.0,101860.0,0.162316]
[1733367777777,0.00058345,101890.0,101880.0,0.009815]
[1733367777968,0.03898345,101890.0,101880.0,0.009815]
[1733367778188,0.00058345,101890.0,101880.0,0.009815]
[1733367778406,0.00058345,101890.0,101880.0,0.01998168]
[1733367778619,0.00058345,101890.0,101880.0,0.009815]
[1733367779076,0.00058345,101890.0,101880.0,0.10148168]
[1733367779291,0.00058345,101890.0,101880.0,0.1153303]
[1733367779921,0.00058345,101890.0,101880.0,0.10321913]
[1733367780737,0.00058345,101890.0,101880.0,0.009815]
[1733367781208,0.03898345,101890.0,101880.0,0.009815]
[1733367781471,0.13593332,101900.0,101880.0,0.009814]
[1733367781699,0.0384,101880.0,101870.0,0.019631]
[1733367781943,0.0384,101880.0,101870.0,0.03038113]
[1733367782172,0.27542743,101920.0,101890.0,0.009814]
[1733367782408,0.56149475,101920.0,101900.0,0.009813]
[1733367782634,0.27542743,101920.0,101900.0,0.019625]
[1733367782863,0.27542743,101920.0,101910.0,0.009812]
[1733367783541,0.60260649,101920.0,101900.0,0.009812]
[1733367783759,0.27542743,101920.0,101900.0,0.009812]
[1733367784258,0.27542743,101920.0,101890.0,0.009813]
[1733367784259,0.0384,101900.0,101890.0,0.009813]
[1733367785430,0.0384,101900.0,101860.0,0.1525]
[1733367785431,0.392643,101880.0,101860.0,0.1525]
[1733367785671,0.196321,101880.0,101860.0,0.1525]
[1733367785921,0.48247832,101880.0,101860.0,0.1525]
[1733367786184,0.08983332,101870.0,101860.0,0.1525]
[1733367786417,0.28616132,101870.0,101860.0,0.1525]
[1733367786861,0.296328,101870.0,101860.0,0.15308345]
[1733367787081,0.296328,101870.0,101860.0,0.00308345]
[1733367787316,0.28616132,101870.0,101860.0,0.00308345]
[1733367787891,0.296328,101870.0,101860.0,0.00308345]
[1733367787967,0.196368,101850.0,101830.0,0.009819]
[1733367788168,0.08983332,101840.0,101830.0,0.00017507]
[1733367788337,0.273568,101850.0,101830.0,0.00999507]
[1733367788540,0.28621932,101840.0,101830.0,0.00017507]
[1733367788778,0.244986,101840.0,101830.0,0.00017507]
[1733367789152,0.244986,101840.0,101760.0,0.009826]
[1733367789153,0.0384,101770.0,101760.0,0.009826]
[1733367789386,0.0486,101790.0,101770.0,0.0104092]
[1733367789589,0.0384,101780.0,101770.0,0.0202342]
[1733367789794,0.0384,101790.0,101780.0,0.009825]
[1733367790029,0.392913,101810.0,101780.0,0.029474]
[1733367790230,0.34027786,101810.0,101780.0,0.009824]
[1733367790437,0.0384,101780.0,101770.0,0.0104082]
[1733367790873,0.0384,101790.0,101780.0,0.009825]
[1733367791075,0.0384,101800.0,101780.0,0.009825]
[1733367791295,0.0384,101790.0,101780.0,0.01999168]
[1733367791507,0.0384,101810.0,101790.0,0.019647]
[1733367791768,0.001204,101900.0,101870.0,0.009816]
[1733367791975,0.00027237,101840.0,101830.0,0.108616]
[1733367792604,0.00027237,101840.0,101830.0,0.11035407]
[1733367793101,0.18,101880.0,101870.0,0.009816]
[1733367793518,0.15,101880.0,101870.0,0.009816]
[1733367794515,0.15017497,101880.0,101870.0,0.009816]
[1733367794605,0.15017497,101880.0,101860.0,0.019632]
[1733367794826,0.15017497,101880.0,101870.0,0.009816]
[1733367795506,0.15017497,101880.0,101870.0,0.019632]
[1733367796248,0.15017497,101880.0,101870.0,0.0255219]
[1733367796467,0.15017497,101880.0,101870.0,0.118428]
[1733367797791,0.15017497,101880.0,101870.0,0.019632]
[1733367800041,0.16041915,101880.0,101870.0,0.019632]
[1733367800260,0.16041915,101880.0,101860.0,0.039267]
[1733367800475,0.15017497,101880.0,101870.0,0.019632]
[1733367800708,0.00017497,101880.0,101870.0,0.019632]
[1733367801156,0.39235762,101930.0,101870.0,0.019632]
[1733367801157,0.196059,102010.0,102000.0,1.05466247]
[1733367801386,0.00058345,101910.0,101890.0,0.039256]
[1733367801604,0.00058345,101910.0,101900.0,0.019627]
[1733367802012,0.00058345,101910.0,101900.0,0.016041]
[1733367803133,0.00058345,101910.0,101890.0,0.034975]
[1733367804012,0.00058345,101910.0,101890.0,0.054602]
[1733367804237,0.00058345,101910.0,101890.0,0.034975]
[1733367804466,0.00058345,101910.0,101890.0,0.054602]
[1733367804701,0.00058345,101910.0,101900.0,0.019627]
[1733367804917,0.00058345,101910.0,101900.0,0.20540521]
[1733367805132,0.00058345,101910.0,101900.0,0.10540521]
[1733367805347,0.00058345,101910.0,101900.0,0.20540521]
[1733367805558,0.00058345,101910.0,101900.0,0.15447221]
[1733367805766,0.00058345,101910.0,101900.0,0.25447221]
[1733367806007,0.00058345,101910.0,101900.0,0.15447221]
[1733367806453,0.00058345,101910.0,101900.0,0.25447221]
[1733367807099,0.00058345,101910.0,101900.0,0.15447221]
[1733367807367,0.00058345,101910.0,101900.0,0.00707821]
[1733367807585,0.00058345,101910.0,101900.0,0.07577221]
[1733367807800,0.00058345,101910.0,101900.0,0.17577221]
[1733367808025,0.00054345,101910.0,101900.0,0.30037221]
[1733367808254,0.01535329,102020.0,101940.0,0.1787]
[1733367808481,0.196043,102020.0,101960.0,0.1]
[1733367808699,1.69611,101990.0,101940.0,0.247363]
[1733367808913,1.5,101990.0,101950.0,0.06866]
[1733367809131,1.5,101990.0,101960.0,0.137301]
[1733367809355,0.00017519,102010.0,101970.0,0.068642]
[1733367809879,0.19623519,102010.0,101960.0,0.137297]
[1733367809982,0.39229519,102010.0,101960.0,0.137297]
[1733367810193,0.03957619,102010.0,101960.0,0.068653]
[1733367810413,0.00017519,102010.0,101980.0,0.13158574]
[1733367810659,0.00017519,102010.0,101990.0,0.194029]
[1733367810866,0.195954,102070.0,102020.0,0.168609]
[1733367811119,0.2155394,102070.0,102030.0,0.1]
[1733367811326,0.2155394,102070.0,102010.0,0.1802]
[1733367811545,0.0195954,102070.0,102050.0,0.1]
[1733367811750,0.195919,102090.0,102050.0,0.1]
[1733367811961,0.0467,102120.0,102060.0,0.0812]
[1733367812181,0.195922,102090.0,102060.0,0.1812]
[1733367812401,0.195901,102100.0,102060.0,0.1812]
[1733367812623,0.3923137,102120.0,102070.0,0.1]
[1733367812850,0.44145524,102120.0,102080.0,0.1]
[1733367813087,0.01022765,102110.0,102090.0,0.1]
[1733367813344,0.01022765,102110.0,102090.0,0.0812]
[1733367813556,0.195906,102090.0,102060.0,0.2282]
[1733367813840,0.195905,102090.0,102060.0,0.1282]
[1733367814081,0.195911,102090.0,102060.0,0.1282]
[1733367814331,0.03918,102090.0,102060.0,0.2282]
[1733367814580,0.00017492,102090.0,102070.0,0.1]
[1733367815077,0.00017492,102090.0,102060.0,0.2282]
[1733367815325,0.19596,102070.0,102030.0,0.1752]
[1733367815558,0.19609692,102090.0,102040.0,0.1]
[1733367815797,0.195939,102080.0,102030.0,0.0752]
[1733367816014,0.195944,102070.0,102030.0,0.0752]
[1733367816243,0.01960969,102090.0,102050.0,0.1]
[1733367816244,1.5,102060.0,102050.0,0.1]
[1733367816477,0.07788239,102190.0,102080.0,0.1]
[1733367816740,0.195793,102150.0,102110.0,0.1]
[1733367816965,0.195813,102140.0,102110.0,0.1]
[1733367817184,0.195813,102140.0,102090.0,0.00173383]
[1733367817185,0.00514,102150.0,102120.0,0.1]
[1733367817437,0.195737,102180.0,102140.0,0.1]
[1733367817713,0.24266724,102180.0,102150.0,0.1]
[1733367818198,0.24284216,102180.0,102150.0,0.1]
[1733367818451,0.00017492,102180.0,102150.0,0.1]
[1733367818684,0.195752,102170.0,102160.0,0.095]
[1733367819149,0.19591092,102180.0,102160.0,0.095]
[1733367819376,0.00017492,102180.0,102170.0,0.17943248]
[1733367819594,0.00017492,102180.0,102170.0,0.1777]
[1733367819834,0.195778,102160.0,102140.0,0.1758]
[1733367820111,0.19579,102150.0,102130.0,0.095]
[1733367820338,0.00017492,102180.0,102160.0,0.095]
[1733367820809,0.19590992,102180.0,102160.0,0.1758]
[1733367821268,0.19590992,102180.0,102160.0,0.0808]
[1733367821540,0.00017492,102180.0,102160.0,0.1758]
[1733367821789,0.19590892,102180.0,102160.0,0.0808]
[1733367822034,0.195789,102160.0,102130.0,0.1758]
[1733367822254,0.07788239,102190.0,102140.0,0.095]
[1733367822494,0.195751,102180.0,102150.0,0.095]
[1733367822724,0.391501,102180.0,102150.0,0.095]
[1733367822969,0.195752,102170.0,102140.0,0.00017492]
[1733367823195,0.195789,102160.0,102140.0,0.00017492]
[1733367823419,0.19479,102150.0,102140.0,0.00017492]
[1733367824293,0.19479,102150.0,102100.0,0.13223355]
[1733367824507,0.195809,102140.0,102100.0,0.0808]
[1733367824716,0.195867,102110.0,102100.0,0.0808]
[1733367824929,0.195809,102140.0,102100.0,0.0808]
[1733367825198,0.195822,102140.0,102100.0,0.08253374]
[1733367825427,0.391673,102130.0,102100.0,0.0808]
[1733367825874,0.19600453,102130.0,102100.0,0.0808]
[1733367826158,0.00017453,102130.0,102100.0,0.08253355]
[1733367826547,0.00017453,102130.0,102100.0,0.18253355]
[1733367826979,0.195776,102160.0,102150.0,0.00184447]
[1733367827630,0.195776,102160.0,102150.0,4.7e-07]
[1733367827853,0.1,102140.0,102100.0,0.0808]
[1733367828065,0.195862,102120.0,102070.0,0.0769337]
[1733367828283,0.195862,102120.0,102070.0,0.0757837]
[1733367828513,0.2154462,102120.0,102070.0,0.07751773]
[1733367828727,0.1195862,102120.0,102070.0,0.0757837]
[1733367828970,0.195907,102090.0,102070.0,0.0005837]
[1733367829220,0.195924,102080.0,102070.0,0.0005837]
[1733367829633,0.295924,102080.0,102070.0,0.0005837]
[1733367829852,0.2646991,102080.0,102070.0,7e-07]
[1733367830082,0.19592,102090.0,102070.0,7e-07]
[1733367830353,0.196007,102040.0,102010.0,0.0752]
[1733367830589,0.196033,102030.0,102010.0,0.0752]
[1733367830810,0.195976,102060.0,102010.0,0.0752]
[1733367831051,0.391903,102070.0,102010.0,0.1752]
[1733367831291,0.194946,102070.0,102020.0,0.00173479]
[1733367831506,0.195976,102060.0,102010.0,0.07693493]
[1733367831732,0.195976,102060.0,102010.0,0.17693493]
[1733367831950,0.195976,102060.0,102010.0,0.1752]
[1733367831951,0.195985,102050.0,102010.0,0.1752]
[1733367832170,0.4312072,102060.0,102010.0,0.1752]
[1733367832386,0.00058205,102070.0,102020.0,0.10173497]
[1733367832387,0.19652605,102070.0,102020.0,0.10173497]
[1733367832602,0.19652605,102070.0,102030.0,0.1]
[1733367832603,0.00058205,102070.0,102030.0,0.1]
[1733367832876,0.00058205,102070.0,102060.0,0.0765]
[1733367834823,0.00058205,102070.0,102060.0,0.00173425]
[1733367835029,0.00058205,102070.0,102040.0,0.1]
[1733367835474,0.00058205,102070.0,102040.0,0.10173447]
[1733367835706,0.00058205,102070.0,102030.0,0.0765]
[1733367835930,0.195977,102060.0,102030.0,0.0765]
[1733367836150,0.19773047,102050.0,102030.0,0.0765]
[1733367836363,0.196001,102040.0,102010.0,0.0497]
[1733367836581,0.19775647,102030.0,102000.0,0.0829]
[1733367836817,0.00173447,102030.0,102000.0,0.0829]
[1733367837035,0.19775747,102030.0,102000.0,0.0829]
[1733367837245,0.25673492,102030.0,102000.0,0.0829]
[1733367837456,0.06071192,102030.0,102000.0,0.0829]
[1733367837676,0.00173447,102030.0,102000.0,0.17912781]
[1733367837888,0.00058169,102030.0,102000.0,0.17695046]
[1733367838131,0.00435388,102030.0,101980.0,0.0461]
[1733367838348,0.39591619,102010.0,101950.0,0.14432781]
[1733367838577,0.196098,101990.0,101950.0,0.0481]
[1733367839013,0.19986919,102000.0,101910.0,0.0498308]
[1733367839014,0.19617,101960.0,101910.0,0.0498308]
[1733367839228,0.196134,101980.0,101920.0,0.09622781]
[1733367839500,0.296134,101980.0,101920.0,0.0017365]
[1733367839711,0.196138,101970.0,101910.0,0.20856131]
[1733367839919,0.0588406,101970.0,101940.0,0.09622781]
[1733367840130,1.696103,101990.0,101920.0,0.09813884]
[1733367840343,0.29612,101980.0,101920.0,0.00017453]